fUSD/lending_fUSD_20241117
["ID","MTS","AMOUNT","RATE_DAILY","PERIOD"]
[342436522,1731869431940,-299.99,9.67e-05,2]
[342436523,1731869431950,-286.88,9.67e-05,2]
[342436524,1731869431959,-169.11,9.678e-05,2]
[342436525,1731869431969,-164.09,9.794e-05,2]
[342436526,1731869431978,-289.1605,9.8e-05,2]
[342436527,1731869431987,-54071.14279908,9.801e-05,2]
[342436528,1731869431999,-11507.85720092,9.801e-05,2]
[342436529,1731869432008,-1118.64064176,9.899e-05,2]
[342436530,1731869432018,-150.0,9.899e-05,2]
[342436531,1731869432027,-3291.2381,9.9e-05,2]
[342436532,1731869432036,-4653.5477,9.9e-05,2]
[342436533,1731869432046,-5000.0,9.9e-05,2]
[342436534,1731869432055,-322.2292,9.9e-05,2]
[342436536,1731869432065,-2500.0,9.9e-05,2]
[342436537,1731869432075,-33524.2926,9.9e-05,2]
[342436538,1731869432084,-47838.9495,9.9e-05,2]
[342436539,1731869432094,-321.4175,9.9e-05,2]
[342436540,1731869432103,-4915.84350321,9.9e-05,2]
[342436541,1731869432113,-1110.564,9.938e-05,2]
[342436542,1731869432124,-1026.029097,9.951e-05,2]
[342436543,1731869432135,-765.79535008,9.953e-05,2]
[342436544,1731869432144,-765.79535008,9.953e-05,2]
[342436545,1731869432154,-1026.029097,9.961e-05,2]
[342436546,1731869432164,-1026.029097,9.966e-05,2]
[342436547,1731869432173,-765.79535008,9.975e-05,2]
[342436548,1731869432182,-1026.029097,9.986e-05,2]
[342436549,1731869432191,-765.79535008,9.987e-05,2]
[342436550,1731869432201,-1026.029097,9.989e-05,2]
[342436551,1731869432210,-150.0,9.994e-05,2]
[342436552,1731869432219,-765.79535008,9.996e-05,2]
[342436553,1731869432228,-677.0,0.0001,2]
[342436554,1731869432237,-9189.45073312,0.0001,2]
[342436555,1731869432249,-6984.05774,0.0001,2]
[342436556,1731869432272,-6293.61547304,0.0001,2]
[342436557,1731869432286,-827.5,0.0001,2]
[342436558,1731869437859,-658.0,0.0001,2]
[342436559,1731869437869,-565.57001,0.0001,2]
[342436560,1731869437892,-7627.33191625,0.0001,2]
[342436561,1731869437912,-25393.187408,0.0001,2]
[342436562,1731869437923,-2168.59933025,0.0001,2]
[342436563,1731869437956,-250.43232999,0.0001,2]
[342436564,1731869437971,-1470.58994762,0.0001,2]
[342436565,1731869437990,-167502.84862021,0.0001,2]
[342436566,1731869437999,-4714.05510511,0.0001,2]
[342436567,1731869438008,-3440647.25908813,0.0001,2]
[342436568,1731869438017,-15974.53036813,0.0001,2]
[342436569,1731869438026,-1785414.61573736,0.0001,2]
[342436595,1731869439512,-270.17533951,0.0001,2]
[342436596,1731869439573,-8923.08451557,0.0001,2]
[342436597,1731869439584,-1736.5522438,0.0001,2]
[342436598,1731869439795,-865.94,0.0001,2]
[342436599,1731869439807,-10520.70380122,0.0001,2]
[342436600,1731869439819,-776.05219815,0.0001,2]
[342436601,1731869439831,-1633.70217032,0.0001,2]
[342436603,1731869439873,5000.0,0.000112,5]
[342436615,1731869442484,-460.335,0.0001,2]
[342436617,1731869442496,-130.665,0.0001,2]
[342436619,1731869442505,-61367.33646737,0.0001,2]
[342436620,1731869442537,-304.10389752,0.0001,2]
[342436621,1731869442591,-377.11693109,0.0001,2]
[342436622,1731869442646,-736.512,0.0001,2]
[342436623,1731869442812,-3008.85996162,0.0001,2]
[342436624,1731869442823,-10629.36348332,0.0001,2]
[342436625,1731869442835,-6230.14124288,0.0001,2]
[342436632,1731869445660,-472.3774434,0.0001,2]
[342436633,1731869445834,-44899.49999999,0.0001,2]
[342436634,1731869445847,-685300.60112088,0.0001,2]
[342436635,1731869445858,-10058.37094,0.0001,2]
[342436636,1731869445870,-11431.6672,0.0001,2]
[342436876,1731869568855,2000.0,0.0002,60]
[342436877,1731869643554,2496.21,8.219e-05,2]
[342436879,1731869778055,152.0,0.00011029,5]
[342436880,1731870043381,250.0,8.978e-05,2]
[342436881,1731870068986,173.39,7.125e-05,2]
[342436882,1731870084504,1000.0,8.926e-05,2]
[342436883,1731870195331,10057.75057519,9.499e-05,6]
[342436884,1731870206162,200.0,8.977e-05,2]
[342436885,1731870229933,-250.0,9.037e-05,2]
[342436886,1731870229960,-171.99,9.041e-05,2]
[342436887,1731870229985,-9550.60810367,9.041e-05,2]
[342436888,1731870230011,-300.0,9.062e-05,2]
[342436889,1731870230040,-250.0,9.063e-05,2]
[342436890,1731870416787,2371.39,8.219e-05,2]
[342436907,1731870631685,-268.53,9.021e-05,2]
[342436909,1731870631694,-300.0,9.044e-05,2]
[342436911,1731870631703,-500.0,9.044e-05,2]
[342436913,1731870631713,-252.18586773,9.055e-05,2]
[342436914,1731870631723,-250.0,9.07e-05,2]
[342436917,1731870631734,-1699.56,9.073e-05,2]
[342436919,1731870631743,-103.31699579,9.077e-05,2]
[342436921,1731870631754,-446.5,9.077e-05,2]
[342436923,1731870631765,-617.91300421,9.077e-05,2]
[342436925,1731870631774,-137.68793331,9.135e-05,2]
[342436927,1731870631786,-39.47206669,9.135e-05,2]
[342436929,1731870631795,-161.88,9.296e-05,2]
[342436931,1731870631804,-3242.09502277,9.499e-05,6]
[342436933,1731870631815,-519.59103622,9.499e-05,6]
[342436937,1731870631843,-1399.93327295,9.499e-05,6]
[342436939,1731870631855,-15576.83009287,9.499e-05,6]
[342436941,1731870631863,-432.84,9.499e-05,6]
[342436943,1731870631873,-1516.17,9.499e-05,6]
[342436945,1731870631883,-3475.50298894,9.499e-05,6]
[342436947,1731870631894,-931.33701106,9.499e-05,6]
[342436949,1731870631904,-2971.41,9.499e-05,6]
[342436951,1731870631913,-642.36923827,9.499e-05,6]
[342436955,1731870631936,-10362.0,9.499e-05,6]
[342436966,1731870637685,-1109.76612253,9.499e-05,6]
[342436967,1731870637697,-3212.85344129,9.499e-05,6]
[342436968,1731870637708,-502.0,9.499e-05,6]
[342436969,1731870637720,-674.68,9.499e-05,6]
[342436970,1731870637748,-301.91055826,9.499e-05,6]
[342436971,1731870637760,-10151.01063965,9.499e-05,6]
[342436972,1731870637769,-3101.25614585,9.499e-05,6]
[342436973,1731870637780,-329.5347003,9.499e-05,6]
[342436974,1731870637793,-16149.0561489,9.499e-05,6]
[342436975,1731870637855,-69.88844032,9.499e-05,6]
[342436976,1731870637925,-5386.45456463,9.499e-05,6]
[342436977,1731870637934,-54975.74,9.499e-05,6]
[342436978,1731870637943,-5760.76,9.499e-05,6]
[342436979,1731870637952,-31448.18,9.499e-05,6]
[342436980,1731870637961,-200.0,9.6e-05,2]
[342436981,1731870637970,-999.99,9.798e-05,2]
[342436982,1731870637980,-150.0,9.799e-05,2]
[342436983,1731870637989,-10998.6417,9.8e-05,2]
[342436984,1731870637999,-892.6998,9.8e-05,2]
[342436985,1731870638013,-4983.4485,9.8e-05,2]
[342436986,1731870638023,-1000.0,9.838e-05,2]
[342436987,1731870638032,-3454.7484,9.873e-05,2]
[342436988,1731870638042,-1924.0,9.898e-05,2]
[342436989,1731870638053,-560.0,9.898e-05,2]
[342436990,1731870638062,-814.0,9.898e-05,2]
[342436991,1731870638072,-1260.0,9.898e-05,2]
[342436992,1731870638081,-3746.0,9.898e-05,2]
[342436993,1731870638092,-921.0,9.898e-05,2]
[342436994,1731870638103,-3490.0,9.898e-05,2]
[342436995,1731870638113,-1951.3651,9.9e-05,2]
[342436996,1731870638122,-39347.1251,9.9e-05,2]
[342436997,1731870638131,-3551.4222,9.9e-05,2]
[342436998,1731870638141,-5000.0,9.9e-05,2]
[342436999,1731870638150,-150.0,9.914e-05,2]
[342437000,1731870638159,-888.451,9.95e-05,2]
[342437001,1731870638168,-500.69208295,9.973e-05,2]
[342437002,1731870638178,-500.0,9.973e-05,2]
[342437004,1731870638187,-539.0,0.0001,2]
[342437005,1731870638196,-4714.05510511,0.0001,2]
[342437007,1731870638206,-233765.6845177,0.0001,2]
[342437008,1731870638215,-1730020.79174138,0.0001,2]
[342437009,1731870638230,-966328.53322111,0.0001,2]
[342437011,1731870638252,-5414253.30891894,0.0001,2]
[342437012,1731870638263,-55061.59274648,0.0001,2]
[342437013,1731870638275,-8010.99065948,0.0001,2]
[342437014,1731870638285,-1595.48310882,0.0001,2]
[342437015,1731870638296,-14517.24943363,0.0001,2]
[342437016,1731870638307,-14324.74685814,0.0001,2]
[342437017,1731870638317,-10282.61154443,0.0001,2]
[342437018,1731870638328,-7296.24268145,0.0001,2]
[342437019,1731870638343,-5197.57096875,0.0001,2]
[342437020,1731870638357,-4583.2606,0.0001,2]
[342437021,1731870638368,-403.34999,0.0001,2]
[342437022,1731870638379,-4614.75,0.0001,2]
[342437025,1731870639972,-3146.42793065,0.0001,2]
[342437028,1731870642664,-1926.63182025,0.0001,2]
[342437029,1731870642676,-2353.37681533,0.0001,2]
[342437048,1731870645697,-1376.9566343,0.0001,2]
[342437050,1731870761865,173.39,7.681e-05,2]
[342437051,1731871172777,2252.82,8.219e-05,2]
[342437054,1731871537026,8471.77495553,9e-05,2]
[342437083,1731871831985,-250.0,9.181e-05,2]
[342437084,1731871831995,-250.0,9.268e-05,2]
[342437085,1731871832004,-1000.0,9.277e-05,2]
[342437086,1731871832014,-585.17,9.32e-05,2]
[342437087,1731871832023,-18800.8301,9.341e-05,2]
[342437125,1731871832604,-853.88,9.341e-05,2]
[342437422,1731871837896,-296.71858141,9.341e-05,2]
[342437423,1731871837909,-3948.57131859,9.341e-05,2]
[342437424,1731871837919,-583.86,9.344e-05,2]
[342437425,1731871837928,-250.0,9.461e-05,2]
[342437426,1731871837939,-300.0,9.461e-05,2]
[342437427,1731871837949,-183.756834,9.589e-05,2]
[342437428,1731871837961,-161.75,9.589e-05,2]
[342437429,1731871837973,-299.99,9.899e-05,2]
[342437430,1731871837983,-10592.4866,9.9e-05,2]
[342437431,1731871837992,-24566.8568,9.9e-05,2]
[342437432,1731871838001,-2153.1623,9.9e-05,2]
[342437433,1731871838011,-500.0,9.974e-05,2]
[342437434,1731871838020,-5607.59984648,9.98e-05,2]
[342437435,1731871838029,-578.0,0.0001,2]
[342437436,1731871838039,-222077.40029181,0.0001,2]
[342437437,1731871838049,-4478.35234985,0.0001,2]
[342437438,1731871838059,-1588320.4824503,0.0001,2]
[342437439,1731871838068,-1583.94665077,0.0001,2]
[342437440,1731871838077,-3548067.09347714,0.0001,2]
[342437441,1731871838201,-26755.86179806,0.0001,2]
[342437442,1731871838219,-1324865.20528378,0.0001,2]
[342437443,1731871838242,-32076.10526897,0.0001,2]
[342437444,1731871838273,-1146.09050734,0.0001,2]
[342437501,1731871839908,-2549.07769724,0.0001,2]
[342437502,1731871839919,-699.80650508,0.0001,2]
[342437503,1731871839931,-9040.02374012,0.0001,2]
[342437504,1731871839942,-3582.28594,0.0001,2]
[342437505,1731871839953,-306.49446637,0.0001,2]
[342437506,1731871839964,-1285.6140946,0.0001,2]
[342437507,1731871839976,-1323.72601942,0.0001,2]
[342437508,1731871840005,-552.50394999,0.0001,2]
[342437509,1731871840016,-588.209208,0.0001,2]
[342437510,1731871840027,-1764.02329,0.0001,2]
[342437511,1731871840078,-1370.45013978,0.0001,2]
[342437512,1731871840090,-1268.40162395,0.0001,2]
[342437566,1731871842838,-28.62083047,0.0001,2]
[342437567,1731871842850,-497.37916953,0.0001,2]
[342437568,1731871842860,-445952.36392095,0.0001,2]
[342437569,1731871843137,-1648823.17622595,0.0001,2]
[342437570,1731871843170,-1800.79642439,0.0001,2]
[342437571,1731871843202,-5695.50129692,0.0001,2]
[342437572,1731871843213,-5971.79119038,0.0001,2]
[342437573,1731871843228,-5469.12456157,0.0001,2]
[342437590,1731871845786,-57195.74803146,0.0001,2]
[342437591,1731871845918,-359.86733455,0.0001,2]
[342437592,1731871845958,-600.8533468,0.0001,2]
[342437593,1731871846004,-284.58432609,0.0001,2]
[342437594,1731871846016,-337.36468296,0.0001,2]
[342437595,1731871846027,-4299.9999999,0.0001,2]
[342437596,1731871846135,-72110.3102628,0.0001,2]
[342437711,1731871909013,173.94,8.219e-05,2]
[342437712,1731872007381,2231.48,8.219e-05,2]
[342437713,1731872591902,300.0,8.821e-05,2]
[342437714,1731872635918,250.0,8.767e-05,2]
[342437715,1731872658213,291.93,8.756e-05,2]
[342437716,1731872677435,2119.9,8.219e-05,2]
[342437721,1731872903554,1000.0,8.561e-05,2]
[342437725,1731872935960,22995.99,8.598e-05,2]
[342437747,1731873032043,-700.0,9e-05,3]
[342437748,1731873032053,-164.11,9.071e-05,2]
[342437750,1731873032062,-1500.0,9.1e-05,3]
[342437753,1731873032071,-168.61,9.132e-05,2]
[342437756,1731873032081,-168.61,9.14e-05,2]
[342437758,1731873032090,-168.61,9.148e-05,2]
[342437760,1731873032100,-150.0,9.151e-05,2]
[342437762,1731873032110,-168.61,9.155e-05,2]
[342437764,1731873032120,-763.15,9.16e-05,2]
[342437766,1731873032130,-168.61,9.163e-05,2]
[342437768,1731873032139,-164.59,9.168e-05,2]
[342437770,1731873032149,-250.0,9.17e-05,2]
[342437771,1731873032158,-168.61,9.17e-05,2]
[342437773,1731873032169,-168.61,9.178e-05,2]
[342437775,1731873032179,-150.0,9.178e-05,2]
[342437777,1731873032189,-362.32,9.178e-05,2]
[342437778,1731873032200,-331.86,9.194e-05,2]
[342437779,1731873032209,-2200.0,9.2e-05,3]
[342437780,1731873032218,-250.0,9.202e-05,2]
[342437781,1731873032228,-3000.0,9.3e-05,3]
[342437782,1731873032238,-226.94168783,9.4e-05,3]
[342437783,1731873032250,-3516.17829719,9.4e-05,3]
[342437784,1731873032274,-56.88001498,9.4e-05,3]
[342437785,1731873032283,-700.0,9.5e-05,3]
[342437786,1731873032294,-167.23,9.558e-05,2]
[342437787,1731873032303,-700.0,9.6e-05,3]
[342437788,1731873032313,-150.0,9.6e-05,2]
[342437789,1731873032323,-1000.0,9.631e-05,2]
[342437790,1731873032333,-127.76095466,9.67e-05,2]
[342437791,1731873032344,-177.55904534,9.67e-05,2]
[342437792,1731873032354,-1904.66,9.67e-05,2]
[342437793,1731873032363,-150.99,9.67e-05,2]
[342437794,1731873032372,-700.0,9.7e-05,3]
[342437795,1731873032382,-700.0,9.8e-05,3]
[342437796,1731873032391,-150.0,9.891e-05,2]
[342437797,1731873032400,-1210.21495466,9.9e-05,2]
[342437798,1731873032530,-3992.37884534,9.9e-05,2]
[342437799,1731873032540,-79.78098092,9.9e-05,2]
[342437800,1731873032551,-497.65536239,9.9e-05,2]
[342437801,1731873032563,-1685.0,9.9e-05,2]
[342437802,1731873032574,-700.0,9.9e-05,2]
[342437803,1731873032585,-2294.34985669,9.9e-05,2]
[342437804,1731873032595,-1261.0,9.9e-05,3]
[342437807,1731873032605,-13.22940839,9.9e-05,2]
[342437811,1731873032616,-3349.58208043,9.9e-05,2]
[342437817,1731873032640,-1637.18851118,9.9e-05,2]
[342437820,1731873032649,-200.0,9.959e-05,2]
[342437822,1731873032658,-200.0,9.965e-05,2]
[342437825,1731873032667,-200.0,9.971e-05,2]
[342437828,1731873032677,-200.0,9.972e-05,2]
[342437829,1731873032687,-500.0,9.973e-05,2]
[342437832,1731873032696,-200.0,9.991e-05,2]
[342437833,1731873032707,-646.0,0.0001,2]
[342437834,1731873032716,-532.91193232,0.0001,2]
[342437835,1731873032743,-388.79,0.0001,2]
[342437845,1731873038074,-4718.70722667,9.9e-05,2]
[342437848,1731873038085,-600.51243555,9.9e-05,2]
[342437855,1731873038147,-3127.09923778,9.9e-05,2]
[342437857,1731873038156,-100138.43674444,0.0001,2]
[342437859,1731873038168,-290.95917489,0.0001,2]
[342437861,1731873038179,-850.22515272,0.0001,2]
[342437862,1731873038224,-122547.97045451,0.0001,2]
[342437863,1731873038234,-4478.35234985,0.0001,2]
[342437864,1731873038243,-5238078.95241551,0.0001,2]
[342437865,1731873038255,-60849.19241648,0.0001,2]
[342437866,1731873038389,-349.02096657,0.0001,2]
[342437867,1731873038401,-4022.04467604,0.0001,2]
[342437868,1731873038413,-2453.80651437,0.0001,2]
[342437869,1731873038424,-11999.998,0.0001,2]
[342437870,1731873038436,-15982.67125843,0.0001,2]
[342437871,1731873038447,-11253.043724,0.0001,2]
[342437872,1731873038461,-25950.60874,0.0001,2]
[342437873,1731873038473,-9032.94236691,0.0001,2]
[342437874,1731873038485,-1364.47754296,0.0001,2]
[342437875,1731873038497,-1619.47648694,0.0001,2]
[342437876,1731873038533,-350.99571698,0.0001,2]
[342437896,1731873040074,-1237.73422834,0.0001,2]
[342437900,1731873040208,-457.12162254,0.0001,2]
[342437901,1731873040220,-5788.60151084,0.0001,2]
[342437902,1731873040232,-3506.639996,0.0001,2]
[342437903,1731873040244,-5968.6,0.0001,2]
[342437904,1731873040256,-1041.5827976,0.0001,2]
[342437905,1731873040595,-14898.07129989,0.0001,2]
[342437906,1731873040607,-1221.11419557,0.0001,2]
[342437907,1731873040621,-426.50620004,0.0001,2]
[342437908,1731873040635,-1286.99595519,0.0001,2]
[342437909,1731873040647,-828.2,0.0001,2]
[342437910,1731873040659,-801.81421915,0.0001,2]
[342437911,1731873040671,-1157.46453,0.0001,2]
[342437923,1731873043108,-1439.85165886,9.9e-05,2]
[342437924,1731873043120,-252.99313448,9.9e-05,2]
[342437925,1731873043153,-807.15520666,9.9e-05,2]
[342437926,1731873043163,-8664.51721932,0.0001,2]
[342437927,1731873043175,-2000.00005,0.0001,2]
[342437928,1731873043206,-5137.5685,0.0001,2]
[342437929,1731873043239,-624.00912122,0.0001,2]
[342437930,1731873043251,-690.399999,0.0001,2]
[342437931,1731873043263,-862.9030949,0.0001,2]
[342437932,1731873043275,-1350.465,0.0001,2]
[342437933,1731873043296,-2764.4054652,0.0001,2]
[342437934,1731873043324,-6766.7308012,0.0001,2]
[342437935,1731873043335,-2657.79056476,0.0001,2]
[342437936,1731873043347,-4248.21071525,0.0001,2]
[342437937,1731873043358,-9153.73615143,0.0001,2]
[342437938,1731873043465,-1153.049,0.0001,2]
[342437939,1731873043478,-285.98635,0.0001,2]
[342437940,1731873043490,-4406.03362216,0.0001,2]
[342437941,1731873043501,-3754.73036392,0.0001,2]
[342437942,1731873043517,-1764.13505171,0.0001,2]
[342437943,1731873043528,-530255.37501788,0.0001,2]
[342437944,1731873043553,-47692.51541159,0.0001,2]
[342437946,1731873043564,-75335.37822566,0.0001,2]
[342437956,1731873046018,-393.75172,0.0001,2]
[342437957,1731873046169,-13563.93408622,0.0001,2]
[342437958,1731873046181,-19851.04499992,0.0001,2]
[342437959,1731873046192,-6246.61386243,0.0001,2]
[342437960,1731873046216,-6471.17868864,0.0001,2]
[342437961,1731873046228,-16576.03688567,0.0001,2]
[342437962,1731873046240,-894.77,0.0001,2]
[342437963,1731873046371,-266.81000033,0.0001,2]
[342437964,1731873046383,-291986.07659593,0.0001,2]
[342437965,1731873046394,-1522.7211588,0.0001,2]
[342437966,1731873046406,-2610.54600658,0.0001,2]
[342437967,1731873046418,-810565.7414463,0.0001,2]
[342437968,1731873046429,-395.50645897,0.0001,2]
[342437969,1731873046449,-4475.6,0.0001,2]
[342437974,1731873228472,250.0,8.977e-05,2]
[342437975,1731873289407,-500.0,0.00025,120]
[342437976,1731873289446,-200.0,0.00025,120]
[342437977,1731873300351,-200.0,0.00025948,120]
[342437978,1731873300378,-500.0,0.00026,120]
[342437979,1731873300402,-500.0,0.00026341,120]
[342437980,1731873300428,-200.0,0.00026896,120]
[342437981,1731873300453,-675.65411927,0.00027,120]
[342437982,1731873300478,-509.26328016,0.00027,120]
[342437983,1731873300501,-648.51943558,0.00027,120]
[342437984,1731873300525,-500.0,0.00027,120]
[342437985,1731873310835,-500.0,0.00027682,120]
[342437986,1731873310860,-200.0,0.00027845,120]
[342437987,1731873310891,-500.0,0.00028,120]
[342437988,1731873310915,-341.3116168,0.00028,120]
[342437989,1731873311135,800.0,0.00027014,120]
[342437990,1731873322942,-154.728,0.0002847,120]
[342437991,1731873322970,-200.0,0.00028794,120]
[342437992,1731873322998,-500.0,0.00029,120]
[342437993,1731873330016,181.0,5.236e-05,2]
[342437994,1731873353175,2013.9,8.219e-05,2]
[342437995,1731873432007,170.42,8.706e-05,2]
[342437996,1731873515233,250.0,8.494e-05,2]
[342437997,1731873528536,291.93,8.494e-05,2]
[342437998,1731873582590,1000.0,8.509e-05,2]
[342438000,1731873720978,10444.87,8.767e-05,2]
[342438001,1731873767079,725.35509388,8.581e-05,7]
[342438002,1731873768132,164.59,8.527e-05,2]
[342438003,1731873893503,250.0,8.516e-05,2]
[342438004,1731873918379,265.49,8.537e-05,2]
[342438005,1731874037340,250.0,8.542e-05,2]
[342438006,1731874061827,1913.2,8.219e-05,2]
[342438007,1731874068229,1800.0,8.22e-05,2]
[342438008,1731874104943,500.0,8.22e-05,2]
[342438009,1731874105147,1300.0,8.22e-05,2]
[342438010,1731874105568,700.0,8.22e-05,2]
[342438022,1731874232189,-1079.57987562,9.144e-05,2]
[342438023,1731874232199,-1.21247006,9.154e-05,2]
[342438024,1731874232213,-1028.79,9.154e-05,2]
[342438025,1731874232244,-408.21502994,9.154e-05,2]
[342438026,1731874232255,-927.05889997,9.154e-05,2]
[342438027,1731874232300,-498.60296188,9.154e-05,2]
[342438028,1731874232313,-403.29951401,9.154e-05,2]
[342438029,1731874232324,-738.54480508,9.154e-05,2]
[342438030,1731874232355,-1249.78872132,9.154e-05,2]
[342438031,1731874232366,-14033.93800313,9.154e-05,2]
[342438032,1731874232377,-621.77146932,9.154e-05,2]
[342438033,1731874232388,-1099.97243844,9.154e-05,2]
[342438034,1731874232400,-106.33734304,9.154e-05,2]
[342438035,1731874232410,-300.0,9.252e-05,2]
[342438036,1731874232419,-303.67,9.256e-05,2]
[342438037,1731874232429,-303.67,9.259e-05,2]
[342438038,1731874232438,-303.67,9.261e-05,2]
[342438039,1731874232448,-303.67,9.264e-05,2]
[342438040,1731874232457,-303.67,9.266e-05,2]
[342438041,1731874232466,-303.67,9.269e-05,2]
[342438042,1731874232476,-303.67,9.271e-05,2]
[342438043,1731874232485,-303.67,9.273e-05,2]
[342438044,1731874232495,-303.67,9.276e-05,2]
[342438045,1731874232505,-303.67,9.278e-05,2]
[342438046,1731874232515,-303.67,9.281e-05,2]
[342438047,1731874232525,-303.67,9.283e-05,2]
[342438048,1731874232536,-303.67,9.286e-05,2]
[342438049,1731874232546,-534.51,9.288e-05,2]
[342438050,1731874232556,-303.67,9.288e-05,2]
[342438051,1731874232565,-296.39152215,9.29e-05,2]
[342438052,1731874232578,-7.27847785,9.29e-05,2]
[342438053,1731874232588,-303.67,9.293e-05,2]
[342438054,1731874232598,-303.67,9.295e-05,2]
[342438055,1731874232608,-303.67,9.298e-05,2]
[342438056,1731874232618,-362.4,9.3e-05,2]
[342438057,1731874232628,-303.67,9.3e-05,2]
[342438059,1731874232637,-303.67,9.303e-05,2]
[342438061,1731874232646,-150.0,9.341e-05,2]
[342438063,1731874232655,-432.63,9.341e-05,2]
[342438065,1731874232664,-150.0,9.478e-05,2]
[342438066,1731874232674,-1000.0,9.573e-05,2]
[342438068,1731874232683,-176.54,9.578e-05,2]
[342438070,1731874232692,-1800.0,9.59e-05,2]
[342438071,1731874232701,-1300.0,9.59e-05,2]
[342438072,1731874232710,-700.0,9.59e-05,2]
[342438073,1731874232719,-400.0,9.6e-05,2]
[342438074,1731874232729,-265.49,9.605e-05,2]
[342438075,1731874232738,-1054.0,9.626e-05,2]
[342438076,1731874232748,-352.82141399,9.67e-05,2]
[342438077,1731874232760,-1285.27858601,9.67e-05,2]
[342438078,1731874232769,-30.62837278,9.67e-05,2]
[342438079,1731874232809,-3048.37162722,9.67e-05,2]
[342438080,1731874232819,-138.16317341,9.7e-05,2]
[342438081,1731874232832,-861.83682659,9.7e-05,2]
[342438082,1731874232842,-2364.5371,9.8e-05,2]
[342438083,1731874232852,-1902.459,9.8e-05,2]
[342438084,1731874232862,-1365.0,9.8e-05,2]
[342438085,1731874232872,-150.0,9.877e-05,2]
[342438086,1731874232881,-1159.0,9.877e-05,2]
[342438087,1731874232891,-1092.0,9.877e-05,2]
[342438088,1731874232902,-1296.56345458,9.89e-05,2]
[342438089,1731874232914,-393.3952172,9.89e-05,2]
[342438090,1731874232929,-378.25609224,9.89e-05,2]
[342438091,1731874232940,-431.15035491,9.89e-05,2]
[342438092,1731874233126,-471.541002,9.89e-05,2]
[342438093,1731874233203,-3600.0,9.89e-05,2]
[342438094,1731874233215,-631.231,9.89e-05,2]
[342438095,1731874233239,-6017.90957853,9.89e-05,2]
[342438096,1731874233250,-7492.6739,9.9e-05,2]
[342438097,1731874233260,-374.4821,9.9e-05,2]
[342438098,1731874233271,-4303.57593085,9.9e-05,2]
[342438117,1731874238159,-5812.40572101,9.9e-05,2]
[342438118,1731874238171,-11868.71466794,9.9e-05,2]
[342438119,1731874238184,-360.53268373,9.9e-05,2]
[342438120,1731874238214,-907.0,9.9e-05,2]
[342438121,1731874238226,-384.37862274,9.9e-05,2]
[342438122,1731874238238,-782.15457373,9.9e-05,2]
[342438123,1731874238248,-8981.4471,9.9e-05,2]
[342438124,1731874238257,-7095.3265,9.9e-05,2]
[342438125,1731874238266,-173.46015601,9.9e-05,2]
[342438126,1731874238277,-4021.05864399,9.9e-05,2]
[342438127,1731874238286,-1000.0,9.9e-05,2]
[342438128,1731874238296,-4361.80114057,9.9e-05,2]
[342438129,1731874238307,-638.19885943,9.9e-05,2]
[342438130,1731874238316,-836.17111607,9.959e-05,2]
[342438131,1731874238328,-395.61288393,9.959e-05,2]
[342438132,1731874238337,-138.22195927,9.959e-05,2]
[342438133,1731874238349,-143.31726205,9.959e-05,2]
[342438134,1731874238359,-298.86632093,9.973e-05,2]
[342438135,1731874238368,-171.59537088,9.973e-05,2]
[342438136,1731874238378,-46.21011004,9.973e-05,2]
[342438137,1731874238397,-453.78988996,9.973e-05,2]
[342438138,1731874238407,-531.0,0.0001,2]
[342438139,1731874238417,-305.07011006,0.0001,2]
[342438140,1731874238428,-2392.28815827,0.0001,2]
[342438141,1731874238440,-1819.61196,0.0001,2]
[342438142,1731874238473,-3037.24353196,0.0001,2]
[342438143,1731874238485,-3632.3,0.0001,2]
[342438144,1731874238497,-89754.04973164,0.0001,2]
[342438145,1731874238516,-118754.6580091,0.0001,2]
[342438146,1731874238530,-4478.35234985,0.0001,2]
[342438147,1731874238540,-3863916.82566732,0.0001,2]
[342438148,1731874238551,-1000.0,0.0001,2]
[342438149,1731874238560,-413.68575686,0.0001,2]
[342438150,1731874238570,-1000.0,0.0001,2]
[342438151,1731874238581,-1000.0,0.0001,2]
[342438152,1731874238591,-1000.0,0.0001,2]